fUST/lending_fUST_20250224
["ID","MTS","AMOUNT","RATE_DAILY","PERIOD"]
[354324761,1740411033244,-70000.0,0.0001379,2]
[354324762,1740411033255,-2211.09,0.00013863,2]
[354324763,1740411033266,-500.0,0.00013863,2]
[354324764,1740411033277,-877.18,0.00013863,2]
[354324765,1740411033288,-500.0,0.00013863,2]
[354324766,1740411033298,-500.0,0.00013863,2]
[354324767,1740411033310,-567.5907317,0.00013863,2]
[354324768,1740411033321,-500.0,0.00013863,2]
[354324769,1740411033331,-500.0,0.00013863,2]
[354324770,1740411033342,-500.0,0.00013863,2]
[354324771,1740411033361,-1966.78346016,0.000139,2]
[354324772,1740411033372,-500.0,0.00013945,2]
[354324773,1740411033383,-2211.09,0.00013945,2]
[354324774,1740411033394,-877.18,0.00013945,2]
[354324775,1740411033404,-500.0,0.00013945,2]
[354324776,1740411033414,-500.0,0.00013945,2]
[354324777,1740411033424,-500.0,0.00013945,2]
[354324778,1740411033434,-500.0,0.00013945,2]
[354324779,1740411033444,-500.0,0.00013945,2]
[354324780,1740411033454,-2211.09,0.00014027,2]
[354324781,1740411033464,-877.18,0.00014027,2]
[354324782,1740411033474,-500.0,0.00014027,2]
[354324783,1740411033484,-500.0,0.00014027,2]
[354324784,1740411033495,-500.0,0.00014027,2]
[354324785,1740411033505,-500.0,0.00014027,2]
[354324786,1740411033515,-632.85,0.00014027,2]
[354324787,1740411033524,-2211.09,0.00014109,2]
[354324788,1740411033533,-877.18,0.00014109,2]
[354324789,1740411033543,-500.0,0.00014109,2]
[354324790,1740411033553,-500.0,0.00014109,2]
[354324791,1740411033563,-2211.09,0.00014191,2]
[354324792,1740411033573,-877.18,0.00014191,2]
[354324793,1740411033582,-500.0,0.00014191,2]
[354324794,1740411033593,-500.0,0.00014191,2]
[354324795,1740411033607,-2000.0,0.000142,2]
[354324796,1740411033617,-2211.09,0.00014273,2]
[354324797,1740411033627,-877.18,0.00014273,2]
[354324798,1740411033636,-500.0,0.00014273,2]
[354324799,1740411033646,-500.0,0.00014273,2]
[354324800,1740411033656,-2211.09,0.00014356,2]
[354324801,1740411033666,-877.18,0.00014356,2]
[354324802,1740411033676,-500.0,0.00014356,2]
[354324803,1740411033686,-500.0,0.00014356,2]
[354324804,1740411033696,-1194.46,0.000144,2]
[354324805,1740411033706,-2211.09,0.00014438,2]
[354324806,1740411033716,-877.18,0.00014438,2]
[354324807,1740411033725,-500.0,0.00014438,2]
[354324808,1740411033735,-500.0,0.00014438,2]
[354324809,1740411033745,-2211.09,0.0001452,2]
[354324810,1740411033754,-877.18,0.0001452,2]
[354324811,1740411033764,-500.0,0.0001452,2]
[354324812,1740411033774,-500.0,0.0001452,2]
[354324813,1740411033784,-354.77366624,0.00014584,2]
[354324814,1740411033793,-2000.0,0.000146,14]
[354324815,1740411033802,-2211.09,0.00014602,2]
[354324816,1740411033812,-877.18,0.00014602,2]
[354324817,1740411033821,-500.0,0.00014602,2]
[354324818,1740411033831,-500.0,0.00014602,2]
[354324819,1740411033841,-483.729,0.00014639,2]
[354324820,1740411033852,-175.04783732,0.00014639,2]
[354324821,1740411033863,-2211.09,0.00014684,2]
[354324822,1740411033873,-877.18,0.00014684,2]
[354324823,1740411033883,-535.6,0.00014684,2]
[354324824,1740411033894,-500.0,0.00014684,2]
[354324825,1740411033905,-2211.09,0.00014767,2]
[354324826,1740411033915,-877.18,0.00014767,2]
[354324827,1740411033924,-500.0,0.00014767,2]
[354324828,1740411033934,-2211.09,0.00014849,2]
[354324829,1740411033946,-877.18,0.00014849,2]
[354324830,1740411033956,-500.0,0.00014849,2]
[354324831,1740411033966,-500.0,0.00014873,2]
[354324832,1740411033976,-27848.64665069,0.000149,2]
[354324833,1740411033990,-4492.94791655,0.000149,2]
[354324847,1740411038392,-19601.91606613,0.00013528,2]
[354324848,1740411038402,-5518.65042324,0.000149,2]
[354324850,1740411038414,-9435.71028066,0.000149,2]
[354324892,1740411043505,-2604.49878334,0.000149,2]
[354324893,1740411043517,-2663.4750055,0.000149,2]
[354324894,1740411043528,-4510.01595375,0.000149,2]
[354324895,1740411043539,-3840.79828,0.000149,2]
[354324896,1740411043550,-19557.6,0.000149,2]
[354324897,1740411043595,-24306.70240725,0.000149,2]
[354324990,1740411046405,-500.0,0.00013698,2]
[354324992,1740411046415,-500.0,0.0001378,2]
[354324994,1740411046425,-500.0,0.00013863,2]
[354324996,1740411046434,-500.0,0.00013945,2]
[354324998,1740411046443,-500.0,0.00014027,2]
[354325000,1740411046453,-500.0,0.00014109,2]
[354325002,1740411046462,-5873.0635,0.000149,2]
[354325004,1740411046474,-10812.66813009,0.000149,2]
[354325007,1740411046491,-8328.70858003,0.000149,2]
[354325009,1740411046503,-9731.1652049,0.000149,2]
[354325011,1740411046512,-2211.09,0.00014931,2]
[354325013,1740411046520,-500.0,0.00014931,2]
[354325015,1740411046530,-9145.57246768,0.0001495,3]
[354325017,1740411046539,-354.7736662,0.00014961,2]
[354325019,1740411046549,-1000.0,0.00015,2]
[354325021,1740411046558,-2211.09,0.00015013,2]
[354325023,1740411046567,-284.64450594,0.00015013,2]
[354325024,1740411046577,-2211.09,0.00015095,2]
[354325026,1740411046586,-355.0331824,0.00015123,2]
[354325027,1740411046595,-555.17532257,0.00015128,2]
[354325028,1740411046604,-2211.09,0.00015178,2]
[354325029,1740411046614,-555.17532257,0.00015228,2]
[354325030,1740411046623,-500.0,0.00015249,2]
[354325031,1740411046635,-500.0,0.00015249,2]
[354325032,1740411046644,-279.74325833,0.00015249,2]
[354325033,1740411046654,-41231.19481571,0.0001525,2]
[354325034,1740411046666,-15397.82647524,0.0001525,2]
[354325035,1740411046677,-1000.0,0.0001525,2]
[354325036,1740411046688,-1540.2184078,0.0001525,2]
[354325037,1740411046700,-306.89999997,0.0001525,2]
[354325038,1740411046711,-939.01119781,0.0001525,2]
[354325044,1740412009739,189.466219,9.041e-05,2]
[354325046,1740412072347,-950.0,0.00012922,2]
[354325099,1740412164107,-3763.1128471,0.00012922,2]
[354325100,1740412164130,-300.0,0.00013551,2]
[354325101,1740412164153,-10750.93645414,0.00013552,2]
[354325102,1740412169162,-8850.97961199,0.00013552,2]
[354325103,1740412169183,-500.0,0.00013698,2]
[354325104,1740412169205,-500.0,0.00013698,2]
[354325105,1740412169245,-500.0,0.00013698,2]
[354325106,1740412169268,-2426.16,0.00013698,2]
[354325107,1740412169293,-234.10604057,0.00013698,2]
[354325108,1740412169317,-742.63,0.00013698,2]
[354325109,1740412169340,-536.63,0.00013698,2]
[354325110,1740412169364,-500.0,0.00013698,2]
[354325111,1740412169388,-228.5117759,0.00013698,2]
[354325112,1740412169412,-500.0,0.00013698,2]
[354325113,1740412169434,-162.807209,0.00013699,2]
[354325114,1740412169455,-500.0,0.0001378,2]
[354325115,1740412169478,-500.0,0.0001378,2]
[354325116,1740412169500,-2426.16,0.0001378,2]
[354325117,1740412169522,-742.63,0.0001378,2]
[354325118,1740412169547,-500.0,0.0001378,2]
[354325119,1740412169568,-500.0,0.00013863,2]
[354325120,1740412169591,-500.0,0.00013863,2]
[354325121,1740412169613,-2426.16,0.00013863,2]
[354325122,1740412169635,-742.63,0.00013863,2]
[354325123,1740412169659,-500.0,0.00013863,2]
[354325124,1740412169680,-500.0,0.00013945,2]
[354325125,1740412169705,-500.0,0.00013945,2]
[354325126,1740412169728,-2426.16,0.00013945,2]
[354325127,1740412169752,-441.11769533,0.00013945,2]
[354325163,1740412238118,-162.807209,0.00013699,2]
[354325164,1740412238128,-301.51230467,0.00013945,2]
[354325165,1740412238138,-500.0,0.00013945,2]
[354325166,1740412238147,-300.0,0.00014026,2]
[354325167,1740412238157,-500.82161074,0.00014027,2]
[354325168,1740412238167,-500.0,0.00014027,2]
[354325169,1740412238176,-2426.16,0.00014027,2]
[354325170,1740412238186,-742.63,0.00014027,2]
[354325171,1740412238195,-500.0,0.00014027,2]
[354325172,1740412238205,-9191.7000831,0.00014065,2]
[354325173,1740412238216,-151.0,0.00014068,2]
[354325174,1740412238226,-153.0,0.00014077,2]
[354325175,1740412238236,-153.0,0.00014077,2]
[354325176,1740412238250,-153.0,0.00014077,2]
[354325177,1740412238259,-153.0,0.00014077,2]
[354325178,1740412238269,-153.0,0.00014077,2]
[354325179,1740412238279,-153.0,0.00014077,2]
[354325180,1740412238288,-153.0,0.00014077,2]
[354325183,1740412238298,-153.0,0.00014077,2]
[354325187,1740412238308,-153.0,0.00014077,2]
[354325190,1740412238317,-153.0,0.00014077,2]
[354325193,1740412238327,-153.0,0.00014077,2]
[354325195,1740412238340,-153.0,0.00014077,2]
[354325196,1740412238350,-153.0,0.00014077,2]
[354325197,1740412238359,-153.0,0.00014077,2]
[354325199,1740412238369,-153.0,0.00014077,2]
[354325200,1740412238379,-153.0,0.00014077,2]
[354325202,1740412238388,-153.0,0.00014077,2]
[354325204,1740412238398,-153.0,0.00014077,2]
[354325206,1740412238407,-153.0,0.00014077,2]
[354325208,1740412238417,-153.0,0.00014077,2]
[354325210,1740412238427,-153.0,0.00014077,2]
[354325212,1740412238437,-153.0,0.00014077,2]
[354325214,1740412238447,-153.0,0.00014077,2]
[354325217,1740412238457,-153.0,0.00014077,2]
[354325219,1740412238467,-153.0,0.00014077,2]
[354325221,1740412238477,-153.0,0.00014077,2]
[354325223,1740412238487,-153.0,0.00014077,2]
[354325225,1740412238497,-153.0,0.00014077,2]
[354325227,1740412238506,-153.0,0.00014077,2]
[354325229,1740412238516,-153.0,0.00014077,2]
[354325231,1740412238525,-153.0,0.00014077,2]
[354325233,1740412238535,-153.0,0.00014077,2]
[354325235,1740412238544,-153.0,0.00014077,2]
[354325237,1740412238553,-153.0,0.00014077,2]
[354325239,1740412238563,-153.0,0.00014077,2]
[354325241,1740412238573,-153.0,0.00014077,2]
[354325243,1740412238582,-153.0,0.00014077,2]
[354325244,1740412238598,-153.0,0.00014077,2]
[354325246,1740412238608,-153.0,0.00014077,2]
[354325248,1740412238617,-153.0,0.00014077,2]
[354325250,1740412238627,-153.0,0.00014077,2]
[354325252,1740412238636,-153.0,0.00014077,2]
[354325254,1740412238646,-153.0,0.00014077,2]
[354325256,1740412238655,-153.0,0.00014077,2]
[354325258,1740412238665,-153.0,0.00014077,2]
[354325260,1740412238674,-153.0,0.00014077,2]
[354325262,1740412238683,-153.0,0.00014077,2]
[354325264,1740412238693,-153.0,0.00014077,2]
[354325266,1740412238702,-153.0,0.00014077,2]
[354325268,1740412238711,-153.0,0.00014077,2]
[354325270,1740412238721,-153.0,0.00014077,2]
[354325272,1740412238731,-153.0,0.00014077,2]
[354325274,1740412238740,-153.0,0.00014077,2]
[354325275,1740412238751,-153.0,0.00014077,2]
[354325277,1740412238760,-153.0,0.00014077,2]
[354325279,1740412238770,-153.0,0.00014077,2]
[354325281,1740412238779,-153.0,0.00014077,2]
[354325283,1740412238788,-153.0,0.00014077,2]
[354325285,1740412238798,-153.0,0.00014077,2]
[354325287,1740412238807,-153.0,0.00014077,2]
[354325289,1740412238816,-153.0,0.00014077,2]
[354325291,1740412238826,-153.0,0.00014077,2]
[354325293,1740412238837,-153.0,0.00014077,2]
[354325295,1740412238846,-153.0,0.00014077,2]
[354325297,1740412238856,-153.0,0.00014077,2]
[354325298,1740412238865,-153.0,0.00014077,2]
[354325299,1740412238875,-153.0,0.00014077,2]
[354325300,1740412238885,-153.0,0.00014077,2]
[354325301,1740412238894,-153.0,0.00014077,2]
[354325302,1740412238904,-48.38353635,0.00014077,2]
[354325304,1740412238918,-104.61646365,0.00014077,2]
[354325306,1740412238928,-153.0,0.00014077,2]
[354325308,1740412238937,-153.0,0.00014077,2]
[354325309,1740412238949,-153.0,0.00014077,2]
[354325310,1740412238959,-153.0,0.00014077,2]
[354325311,1740412238968,-153.0,0.00014077,2]
[354325313,1740412238978,-153.0,0.00014077,2]
[354325315,1740412238987,-153.0,0.00014077,2]
[354325317,1740412238997,-153.0,0.00014077,2]
[354325319,1740412239006,-153.0,0.00014077,2]
[354325320,1740412239016,-153.0,0.00014077,2]
[354325322,1740412239026,-153.0,0.00014077,2]
[354325324,1740412239035,-153.0,0.00014077,2]
[354325326,1740412239045,-153.0,0.00014077,2]
[354325328,1740412239054,-153.0,0.00014077,2]
[354325330,1740412239064,-153.0,0.00014077,2]
[354325332,1740412239074,-153.0,0.00014077,2]
[354325334,1740412239088,-153.0,0.00014077,2]
[354325335,1740412239098,-153.0,0.00014077,2]
[354325337,1740412239108,-153.0,0.00014077,2]
[354325339,1740412239119,-153.0,0.00014077,2]
[354325341,1740412239129,-153.0,0.00014077,2]
[354325343,1740412239139,-153.0,0.00014077,2]
[354325345,1740412239149,-153.0,0.00014077,2]
[354325347,1740412239159,-153.0,0.00014077,2]
[354325349,1740412239170,-153.0,0.00014077,2]
[354325351,1740412239180,-153.0,0.00014077,2]
[354325353,1740412239189,-153.0,0.00014077,2]
[354325355,1740412239199,-153.0,0.00014077,2]
[354325357,1740412239209,-153.0,0.00014077,2]
[354325359,1740412239219,-153.0,0.00014077,2]
[354325361,1740412239228,-153.0,0.00014077,2]
[354325363,1740412239238,-153.0,0.00014077,2]
[354325365,1740412239253,-153.0,0.00014077,2]
[354325367,1740412239263,-153.0,0.00014077,2]
[354325369,1740412239272,-153.0,0.00014077,2]
[354325371,1740412239282,-153.0,0.00014077,2]
[354325373,1740412239295,-153.0,0.00014077,2]
[354325375,1740412239306,-153.0,0.00014077,2]
[354325377,1740412239316,-153.0,0.00014077,2]
[354325379,1740412239326,-153.0,0.00014077,2]
[354325382,1740412239338,-153.0,0.00014077,2]
[354325384,1740412239349,-153.0,0.00014077,2]
[354325386,1740412239358,-153.0,0.00014077,2]
[354325388,1740412239368,-153.0,0.00014077,2]
[354325390,1740412239378,-153.0,0.00014077,2]
[354325392,1740412239388,-153.0,0.00014077,2]
[354325393,1740412239397,-153.0,0.00014077,2]
[354325395,1740412239408,-153.0,0.00014077,2]
[354325397,1740412239418,-153.0,0.00014077,2]
[354325400,1740412239428,-153.0,0.00014077,2]
[354325401,1740412239439,-153.0,0.00014077,2]
[354325404,1740412239450,-153.0,0.00014077,2]
[354325406,1740412239460,-153.0,0.00014077,2]
[354325408,1740412239470,-153.0,0.00014077,2]
[354325410,1740412239481,-153.0,0.00014077,2]
[354325412,1740412239490,-153.0,0.00014077,2]
[354325414,1740412239499,-153.0,0.00014077,2]
[354325416,1740412239509,-153.0,0.00014077,2]
[354325417,1740412239518,-153.0,0.00014077,2]
[354325419,1740412239528,-153.0,0.00014077,2]
[354325422,1740412239538,-153.0,0.00014077,2]
[354325424,1740412239548,-153.0,0.00014077,2]
[354325426,1740412239558,-153.0,0.00014077,2]
[354325427,1740412239568,-153.0,0.00014077,2]
[354325430,1740412239577,-153.0,0.00014077,2]
[354325431,1740412239590,-153.0,0.00014077,2]
[354325434,1740412239599,-153.0,0.00014077,2]
[354325436,1740412239610,-153.0,0.00014077,2]
[354325437,1740412239619,-153.0,0.00014077,2]
[354325440,1740412239628,-153.0,0.00014077,2]
[354325441,1740412239638,-153.0,0.00014077,2]
[354325443,1740412239647,-153.0,0.00014077,2]
[354325445,1740412239656,-153.0,0.00014077,2]
[354325448,1740412239665,-153.0,0.00014077,2]
[354325449,1740412239675,-153.0,0.00014077,2]
[354325451,1740412239684,-153.0,0.00014077,2]
[354325454,1740412239694,-153.0,0.00014077,2]
[354325455,1740412239703,-153.0,0.00014077,2]
[354325458,1740412239712,-153.0,0.00014077,2]
[354325459,1740412239721,-153.0,0.00014077,2]
[354325461,1740412239731,-153.0,0.00014077,2]
[354325463,1740412239741,-153.0,0.00014077,2]
[354325465,1740412239751,-153.0,0.00014077,2]
[354325467,1740412239760,-153.0,0.00014077,2]
[354325469,1740412239770,-153.0,0.00014077,2]
[354325471,1740412239779,-153.0,0.00014077,2]
[354325473,1740412239788,-153.0,0.00014077,2]
[354325475,1740412239797,-153.0,0.00014077,2]
[354325477,1740412239806,-153.0,0.00014077,2]
[354325479,1740412239816,-153.0,0.00014077,2]
[354325481,1740412239826,-153.0,0.00014077,2]
[354325483,1740412239838,-153.0,0.00014077,2]
[354325485,1740412239848,-153.0,0.00014077,2]
[354325487,1740412239857,-153.0,0.00014077,2]
[354325489,1740412239867,-153.0,0.00014077,2]
[354325491,1740412239877,-153.0,0.00014077,2]
[354325493,1740412239886,-153.0,0.00014077,2]
[354325495,1740412239895,-153.0,0.00014077,2]
[354325497,1740412239905,-153.0,0.00014077,2]
[354325499,1740412239914,-164.0,0.00014077,2]
[354325501,1740412239924,-164.0,0.00014077,2]
[354325503,1740412239935,-164.0,0.00014077,2]
[354325505,1740412239945,-164.0,0.00014077,2]
[354325507,1740412239955,-164.0,0.00014077,2]
[354325509,1740412239964,-164.0,0.00014077,2]
[354325511,1740412239974,-164.0,0.00014077,2]
[354325513,1740412239983,-164.0,0.00014077,2]
[354325515,1740412239993,-164.0,0.00014077,2]
[354325517,1740412240003,-164.0,0.00014077,2]
[354325519,1740412240012,-164.0,0.00014077,2]
[354325521,1740412240021,-164.0,0.00014077,2]
[354325523,1740412240031,-164.0,0.00014077,2]
[354325525,1740412240040,-164.0,0.00014077,2]
[354325527,1740412240050,-164.0,0.00014077,2]
[354325529,1740412240059,-164.0,0.00014077,2]
[354325531,1740412240068,-164.0,0.00014077,2]
[354325533,1740412240078,-164.0,0.00014077,2]
[354325535,1740412240088,-164.0,0.00014077,2]
[354325537,1740412240098,-164.0,0.00014077,2]
[354325539,1740412240107,-164.0,0.00014077,2]
[354325541,1740412240116,-500.0,0.00014109,2]
[354325543,1740412240126,-2426.16,0.00014109,2]
[354325545,1740412240136,-742.63,0.00014109,2]
[354325547,1740412240146,-500.0,0.00014109,2]
[354325549,1740412240157,-500.0,0.00014191,2]
[354325551,1740412240166,-2426.16,0.00014191,2]
[354325553,1740412240176,-742.63,0.00014191,2]
[354325555,1740412240185,-500.0,0.00014191,2]
[354325557,1740412240195,-4583.20559771,0.00014213,2]
[354325559,1740412240204,-500.0,0.00014257,2]
[354325562,1740412240214,-506.58724568,0.00014271,2]
[354325565,1740412240223,-501.57008291,0.00014271,2]
[354325568,1740412240232,-590.61973674,0.00014273,2]
[354325571,1740412240242,-2426.16,0.00014273,2]
[354325574,1740412240253,-742.63,0.00014273,2]
[354325577,1740412240266,-500.0,0.00014273,2]
[354325580,1740412240277,-500.0,0.00014304,2]
[354325583,1740412240287,-500.0,0.00014313,2]
[354325587,1740412240298,-500.0,0.00014313,2]
[354325590,1740412240307,-204.99690103,0.00014313,2]
[354325593,1740412240317,-2426.16,0.00014356,2]
[354325596,1740412240327,-742.63,0.00014356,2]
[354325599,1740412240338,-500.0,0.00014356,2]
[354325602,1740412240348,-503.64714928,0.00014406,2]
[354325605,1740412240358,-2426.16,0.00014438,2]
[354325609,1740412240368,-742.63,0.00014438,2]
[354325613,1740412240377,-500.0,0.00014438,2]
[354325616,1740412240387,-1075.02,0.000145,2]
[354325619,1740412240396,-2426.16,0.0001452,2]
[354325622,1740412240406,-742.63,0.0001452,2]
[354325625,1740412240416,-500.0,0.0001452,2]
[354325627,1740412240425,-871.10131983,0.00014561,2]
[354325653,1740412240544,-2426.16,0.00014602,2]
[354325655,1740412240555,-742.63,0.00014602,2]
[354325657,1740412240564,-500.0,0.00014602,2]
[354325659,1740412240573,-554.435,0.00014651,2]
[354325661,1740412240583,-2426.16,0.00014684,2]
[354325663,1740412240594,-742.63,0.00014684,2]
[354325665,1740412240603,-500.0,0.00014684,2]
[354325667,1740412240612,-524.62554988,0.00014707,2]
[354325669,1740412240622,-2426.16,0.00014767,2]
[354325671,1740412240631,-742.63,0.00014767,2]
[354325673,1740412240643,-500.0,0.00014767,2]
[354325675,1740412240652,-385.80609726,0.00014801,2]
[354325677,1740412240661,-265.34417137,0.00014831,2]
[354325679,1740412240671,-2426.16,0.00014849,2]
[354325681,1740412240680,-742.63,0.00014849,2]
[354325683,1740412240690,-500.0,0.00014849,2]
[354325685,1740412240699,-500.0,0.00014852,2]
[354325686,1740412240709,-1000.0,0.0001486,2]
[354325687,1740412240719,-435.46921917,0.0001487,2]
[354325688,1740412240729,-1012.51558658,0.000149,2]
[354325690,1740412240739,-83549.9492099,0.000149,2]
[354325692,1740412240749,-2426.16,0.00014931,2]
[354325694,1740412240760,-742.63,0.00014931,2]
[354325696,1740412240773,-500.0,0.00014931,2]
[354325698,1740412240784,-27161.05771874,0.00014968,2]
[354325700,1740412240799,-260.52472553,0.00014968,2]
[354325703,1740412240811,-2003.23957008,0.00014968,2]
[354325705,1740412240823,-471.910899,0.00014968,2]
[354325706,1740412240834,-1515.35142622,0.00014968,2]
[354325707,1740412240847,-52137.86487033,0.00014968,2]
[354325708,1740412240857,-1713.305186,0.00015,2]
[354325709,1740412240867,-2426.16,0.00015013,2]
[354325710,1740412240877,-742.63,0.00015013,2]
[354325711,1740412240886,-526.56,0.00015013,2]
[354325712,1740412240896,-1462.67844021,0.00015045,2]
[354325713,1740412240908,-11815.52056869,0.00015045,2]
[354325714,1740412240917,-2426.16,0.00015095,2]
[354325715,1740412240927,-742.63,0.00015095,2]
[354325717,1740412240936,-544.07181612,0.0001514,2]
[354325719,1740412240946,-265.34417134,0.00015146,2]
[354325721,1740412240955,-2426.16,0.00015178,2]
[354325723,1740412240964,-742.63,0.00015178,2]
[354325725,1740412240974,-544.07181612,0.0001524,2]
[354325727,1740412240983,-2426.16,0.0001526,2]
[354325729,1740412240992,-742.63,0.0001526,2]
[354325731,1740412241001,-3482.68,0.00015298,2]
[354325733,1740412241011,-544.07181612,0.0001534,2]
[354325734,1740412241020,-2426.16,0.00015342,2]
[354325736,1740412241030,-742.63,0.00015342,2]
[354325738,1740412241039,-182.0,0.00015366,2]
[354325740,1740412241049,-2426.16,0.00015424,2]
[354325742,1740412241058,-742.63,0.00015424,2]
[354325744,1740412241068,-544.07181612,0.0001544,2]
[354325746,1740412241078,-265.34417134,0.00015461,2]
[354325747,1740412241089,-465.00027188,0.00015474,2]
[354325749,1740412241099,-2426.16,0.00015506,2]
[354325750,1740412241108,-742.63,0.00015506,2]
[354325752,1740412241118,-544.07181612,0.0001554,2]
[354325754,1740412241127,-2426.29,0.00015589,2]
[354325756,1740412241137,-742.84,0.00015589,2]
[354325758,1740412241147,-544.07181612,0.0001564,2]
[354325760,1740412241156,-333.0,0.0001569,2]
[354325762,1740412241166,-544.07181612,0.0001574,2]
[354325764,1740412241176,-189.466219,0.00015775,2]
[354325766,1740412241186,-265.34417134,0.00015775,2]
[354325768,1740412241195,-544.07181612,0.0001584,2]
[354325770,1740412241205,-544.07181612,0.0001594,2]
[354325771,1740412241214,-500.0,0.00015957,2]
[354325773,1740412241225,-500.0,0.00015957,2]
[354325775,1740412241235,-500.0,0.00015957,2]
[354325777,1740412241245,-500.0,0.00015957,2]
[354325779,1740412241255,-500.0,0.00015957,2]
[354325781,1740412241269,-500.0,0.00015957,2]
[354325782,1740412241279,-310.62251697,0.00015957,2]
[354325784,1740412241289,-500.0,0.00015957,2]
[354325785,1740412241299,-500.0,0.00015957,2]
[354325786,1740412241308,-295.06843452,0.00015957,2]
[354325787,1740412241318,-83549.9492099,0.00015958,2]
[354325788,1740412241328,-1284.46647353,0.00015989,2]
[354325789,1740412241341,-151.0,0.00015989,2]
[354325790,1740412241352,-216555.25877989,0.00016,14]
[354325791,1740412241375,-18137.85450505,0.00016,14]
[354325792,1740412241387,-4422.39935392,0.00016,14]
[354325793,1740412241399,-823.544997,0.00016,14]
[354325794,1740412241411,-6351.28166407,0.00016,14]
[354325795,1740412241438,-16015.27854567,0.00016,14]
[354325796,1740412241476,-4698.35,0.00016,14]
[354325797,1740412241487,-4999.95750239,0.00016,14]
[354325798,1740412241498,-356.95191,0.00016,14]
[354325799,1740412241510,-706.03866213,0.00016,14]
[354325800,1740412241522,-15774.19998336,0.00016,14]
[354325801,1740412241534,-7529.73530414,0.00016,14]
[354325802,1740412241543,-10034.2365176,0.00016,2]
[354325803,1740412241554,-700.0,0.00016,4]
[354325804,1740412241564,-3000.0,0.00016,2]
[354325805,1740412241573,-3000.0,0.0001601,2]
[354325806,1740412241582,-3000.0,0.0001602,2]
[354325807,1740412241596,-3000.0,0.0001603,2]
[354325808,1740412241606,-544.07181612,0.0001604,2]
[354325809,1740412241616,-1242.92823709,0.0001604,2]
[354325810,1740412241628,-1757.07176291,0.0001604,2]
[354325811,1740412241637,-3000.0,0.0001605,2]
[354325812,1740412241648,-3000.0,0.0001606,2]
[354325813,1740412241658,-782.25745904,0.0001607,5]
[354325815,1740412241667,-3963.15231499,0.0001607,5]
[354325816,1740412241677,-3000.0,0.0001607,2]
[354325817,1740412241687,-290.77228167,0.0001607,2]
[354325818,1740412241699,-13373.66066158,0.0001607,2]
[354325819,1740412241710,-15375.79842595,0.0001607,2]
[354325871,1740412244125,-54509.7178407,0.0001607,2]
[354325872,1740412244136,-3000.0,0.0001608,2]
[354325873,1740412244147,-3000.0,0.0001608,2]
[354325874,1740412244161,-3000.0,0.0001609,2]
[354325875,1740412244174,-1423.5365375,0.0001609,2]
[354325876,1740412244186,-2879.09274168,0.0001609,2]
[354325877,1740412244197,-265.34417134,0.0001609,2]
[354325878,1740412244208,-150.0,0.00016092,4]
[354325879,1740412244220,-150.0,0.00016092,4]
[354325880,1740412244230,-3000.0,0.000161,2]
[354325881,1740412244242,-3000.0,0.0001611,2]
[354325882,1740412244257,-3000.0,0.0001612,2]
[354325883,1740412244269,-3000.0,0.0001613,2]